bitfinex-derivatives/quotes_SOLF0:USTF0_20250714
["timestamp","ask_amount","ask_price","bid_price","bid_amount"]
[1752483528143,179.8662,167.57,167.53,5.9674]
[1752483528545,179.8662,167.57,167.5,3.13935045]
[1752483528749,173.9,167.57,167.54,5.9672]
[1752483529148,173.9,167.57,167.46,3.13935045]
[1752483529149,5.9676,167.53,167.46,3.13935045]
[1752483529351,3.13935045,167.51,167.44,3.13935045]
[1752483530953,3.13935045,167.51,167.47,5.9694]
[1752483531348,3.13935045,167.51,167.44,3.13935045]
[1752483531647,3.13935045,167.51,167.48,5.9692]
[1752483531847,3.13935045,167.51,167.44,3.13935045]
[1752483532049,173.9,167.52,167.44,3.13935045]
[1752483532552,179.8681,167.52,167.44,3.13935045]
[1752483532753,179.8681,167.52,167.48,5.9692]
[1752483532953,173.9,167.52,167.44,3.13935045]
[1752483534056,5.9683,167.51,167.47,5.9694]
[1752483535165,179.868,167.52,167.48,5.9693]
[1752483536057,179.868,167.52,167.47,5.9696]
[1752483536755,9.10775045,167.51,167.46,5.97]
[1752483537460,5.9684,167.51,167.46,5.97]
[1752483537762,5.9687,167.5,167.41,3.13935045]
[1752483537964,3.13935045,167.49,167.41,3.13935045]
[1752483538161,10.98209906,167.51,167.41,3.13935045]
[1752483538361,10.98209906,167.51,167.43,3.13935045]
[1752483538362,3.13935045,167.5,167.43,3.13935045]
[1752483538560,173.9,167.5,167.43,3.13935045]
[1752483539057,5.01369906,167.52,167.45,3.13935045]
[1752483539265,173.9,167.52,167.45,3.13935045]
[1752483539459,173.9,167.52,167.48,5.9691]
[1752483539963,179.868,167.52,167.48,5.9691]
[1752483540259,3.13935045,167.51,167.48,5.9691]
[1752483540959,3.13935045,167.51,167.47,5.9696]
[1752483541162,3.13935045,167.49,167.47,5.9696]
[1752483541462,3.13935045,167.49,167.41,3.13935045]
[1752483542565,183.00775045,167.51,167.47,5.9695]
[1752483543364,183.00775045,167.51,167.48,5.9693]
[1752483543565,183.00775045,167.51,167.43,3.13935045]
[1752483544069,5.01457054,167.53,167.45,3.13935045]
[1752483544263,173.92,167.52,167.45,3.13935045]
[1752483544656,179.8881,167.52,167.48,5.9692]
[1752483544961,183.02745045,167.52,167.45,3.13935045]
[1752483545169,183.02745045,167.52,167.48,5.9691]
[1752483545759,8.15392099,167.54,167.47,3.13935045]
[1752483545966,177.03935045,167.54,167.47,3.13935045]
[1752483546166,173.9,167.54,167.47,3.13935045]
[1752483546365,173.9,167.54,167.51,5.9681]
[1752483546870,173.9,167.54,167.52,5.9679]
[1752483547270,173.9,167.54,167.51,3.13935045]
[1752483547474,179.8664,167.57,167.51,3.13935045]
[1752483548571,173.9,167.57,167.54,5.9671]
[1752483549273,173.9,167.57,167.55,5.9669]
[1752483549674,173.9,167.57,167.53,3.13935045]
[1752483549874,173.9,167.57,167.54,5.9672]
[1752483550775,173.9,167.57,167.55,5.9667]
[1752483551070,173.9,167.57,167.53,3.13935045]
[1752483551071,173.9,167.57,167.51,3.13935045]
[1752483551281,173.9,167.57,167.49,3.13935045]
[1752483551467,3.13935045,167.56,167.49,3.13935045]
[1752483552570,9.10595045,167.56,167.52,5.9677]
[1752483552966,3.13935045,167.56,167.52,5.9677]
[1752483553171,3.13935045,167.56,167.49,3.13935045]
[1752483553479,179.8663,167.57,167.49,3.13935045]
[1752483553677,173.9,167.57,167.53,5.9674]
[1752483554080,173.9,167.57,167.51,3.13935045]
[1752483554272,1.0,167.58,167.51,3.13935045]
[1752483554478,174.86,167.58,167.53,3.13935045]
[1752483555378,174.86,167.58,167.55,5.9667]
[1752483556083,177.99935045,167.58,167.53,5.9674]
[1752483557980,177.99935045,167.58,167.52,5.9678]
[1752483558483,177.99935045,167.58,167.53,5.9675]
[1752483559283,177.99935045,167.58,167.52,5.9679]
[1752483559676,183.01207562,167.58,167.52,5.9679]
[1752483559877,183.01207562,167.58,167.53,5.9675]
[1752483560086,177.99935045,167.58,167.53,5.9675]
[1752483560284,177.99935045,167.58,167.5,3.13935045]
[1752483560477,177.99935045,167.58,167.52,5.9677]
[1752483560985,174.86,167.58,167.52,5.9677]
[1752483561184,3.13935045,167.57,167.53,5.9675]
[1752483564489,3.13935045,167.57,167.5,3.13935045]
[1752483564983,3.13935045,167.57,167.52,5.9677]
[1752483568085,174.86,167.58,167.53,5.9673]
[1752483568388,174.86,167.58,167.5,3.13935045]
[1752483568985,174.86,167.58,167.53,5.9673]
[1752483569287,174.86,167.58,167.5,3.13935045]
[1752483569689,174.82,167.58,167.5,3.13935045]
[1752483570086,174.82,167.58,167.54,5.967]
[1752483571389,174.82,167.58,167.53,5.9675]
[1752483571589,3.13935045,167.57,167.44,15.08065045]
[1752483571791,3.13935045,167.57,167.48,3.13935045]
[1752483572691,3.13935045,167.57,167.51,5.968]
[1752483572886,3.13935045,167.57,167.48,3.13935045]
[1752483573695,3.13935045,167.57,167.52,5.9677]
[1752483573993,3.13935045,167.57,167.48,3.13935045]
[1752483574195,3.13935045,167.57,167.53,5.9676]
[1752483574396,3.13935045,167.57,167.48,3.13935045]
[1752483574994,3.13935045,167.57,167.52,5.9677]
[1752483575294,3.13935045,167.57,167.48,3.13935045]
[1752483575688,3.13935045,167.57,167.53,5.9675]
[1752483576295,3.13935045,167.57,167.5,3.13935045]
[1752483576792,174.82,167.58,167.52,5.9677]
[1752483576994,177.95935045,167.58,167.52,5.9677]
[1752483579794,177.95935045,167.58,167.49,3.13935045]
[1752483580392,177.95935045,167.58,167.53,5.9676]
[1752483580799,177.95935045,167.58,167.49,3.13935045]
[1752483581600,177.95935045,167.58,167.52,5.9677]
[1752483582796,177.95935045,167.58,167.53,5.9675]
[1752483582995,3.13935045,167.56,167.47,3.13935045]
[1752483583402,3.13935045,167.56,167.53,5.9676]
[1752483583601,177.95935045,167.58,167.53,5.9676]
[1752483583898,177.95935045,167.58,167.52,5.9678]
[1752483584100,182.97171904,167.58,167.52,5.9678]
[1752483584995,182.97171904,167.58,167.53,5.9676]
[1752483587699,182.97171904,167.58,167.52,5.9678]
[1752483588102,5.01236859,167.57,167.52,5.9678]
[1752483590207,5.01236859,167.56,167.52,5.9678]
[1752483590806,5.01236859,167.56,167.49,3.13935045]
[1752483590807,5.01236859,167.56,167.53,5.9675]
[1752483591107,5.01236859,167.56,167.49,3.13935045]
[1752483592007,5.01236859,167.56,167.51,5.9683]
[1752483592408,5.01236859,167.56,167.49,3.13935045]
[1752483592710,5.01236859,167.55,167.51,5.9681]
[1752483594707,5.01236859,167.55,167.49,3.13935045]
[1752483595209,5.01236859,167.55,167.52,5.9678]
[1752483595908,5.01236859,167.55,167.51,5.9682]
[1752483596407,5.03212557,167.55,167.51,5.9682]
[1752483598807,5.03212557,167.55,167.48,3.13935045]
[1752483599304,5.03212557,167.55,167.52,5.9678]
[1752483600210,5.03212557,167.55,167.5,3.13935045]
[1752483600407,5.03212557,167.56,167.5,3.13935045]
[1752483601305,5.03212557,167.56,167.46,4.98179372]
[1752483601306,1.0,167.58,167.55,5.9666]
[1752483602211,6.03292407,167.58,167.55,5.9666]
[1752483602411,6.03292407,167.58,167.54,5.9671]
[1752483604604,6.03292407,167.58,167.55,5.9668]
[1752483605108,6.03292407,167.58,167.54,3.13935045]
[1752483605314,1.0,167.58,167.54,3.13935045]
[1752483606226,1.0,167.58,167.52,3.13935045]
[1752483606521,1.0,167.58,167.54,5.967]
[1752483606819,1.0,167.58,167.52,3.13935045]
[1752483607619,18.93,167.58,167.51,5.968]
[1752483607820,27.10227452,167.58,167.5,3.13935045]
[1752483608021,5.03292407,167.57,167.5,3.13935045]
[1752483608719,195.74935045,167.58,167.44,3.13935045]
[1752483608720,197.64292407,167.58,167.52,3.13935045]
[1752483609021,18.93,167.58,167.52,3.13935045]
[1752483609418,18.93,167.58,167.53,5.9673]
[1752483609619,18.93,167.58,167.52,3.13935045]
[1752483610118,18.93,167.58,167.53,5.9675]
[1752483610526,18.93,167.58,167.52,9.10725045]
[1752483610720,22.06935045,167.58,167.52,5.9679]
[1752483611121,4.13935045,167.58,167.52,5.9679]
[1752483611320,5.02530515,167.57,167.51,5.9683]
[1752483611814,5.02530515,167.57,167.5,9.10795045]
[1752483612021,5.02530515,167.56,167.5,9.10795045]
[1752483612722,8.1646556,167.56,167.51,5.9682]
[1752483612923,8.1646556,167.56,167.48,3.13935045]
[1752483613127,8.1646556,167.56,167.5,5.9684]
[1752483613621,5.02530515,167.56,167.51,5.9682]
[1752483613923,8.1646556,167.56,167.51,5.9682]
[1752483614823,5.02530515,167.56,167.51,5.9682]
[1752483615525,5.02530515,167.56,167.5,5.9685]
[1752483615724,5.02530515,167.56,167.48,3.13935045]
[1752483616322,5.02530515,167.56,167.51,5.968]
[1752483617824,5.02530515,167.56,167.52,5.9679]
[1752483618120,3.13935045,167.57,167.52,3.13935045]
[1752483618121,5.02530515,167.57,167.52,3.13935045]
[1752483618322,6.02530515,167.58,167.52,3.13935045]
[1752483619323,6.02530515,167.58,167.5,3.13935045]
[1752483619527,5.02530515,167.57,167.5,3.13935045]
[1752483620622,6.02530515,167.58,167.52,3.13935045]
[1752483621021,1.0,167.58,167.54,3.13935045]
[1752483621323,1.0,167.58,167.56,3.13935045]
[1752483621524,1.0,167.58,167.56,9.10565045]
[1752483622219,1.0,167.58,167.56,5.9663]
[1752483622425,1.0,167.58,167.55,3.13935045]
[1752483622624,1.0,167.58,167.53,3.13935045]
[1752483623018,1.0,167.58,167.53,9.10665045]
[1752483623318,1.0,167.58,167.53,3.13935045]
[1752483623720,1.0,167.58,167.54,5.967]
[1752483623925,1.0,167.58,167.53,3.13935045]
[1752483625124,1.0,167.58,167.55,3.13935045]
[1752483625721,1.0,167.58,167.56,5.9665]
[1752483625926,1.0,167.58,167.55,3.13935045]
[1752483627020,1.0,167.58,167.56,5.9665]
[1752483627227,1.0,167.58,167.55,3.13935045]
[1752483628926,1.0,167.58,167.55,3.17827056]
[1752483629129,1.0,167.58,167.57,5.9662]
[1752483629328,1.0,167.58,167.57,9.10555045]
[1752483629627,5.02530515,167.63,167.6,5.965]
[1752483629827,5.02530515,167.63,167.57,3.13935045]
[1752483630225,5.02530515,167.64,167.6,5.9651]
[1752483630424,5.02530515,167.64,167.57,3.13935045]
[1752483630629,5.02530515,167.64,167.6,5.9651]
[1752483631122,5.02530515,167.64,167.59,3.13935045]
[1752483631425,5.02530515,167.67,167.62,5.9643]
[1752483632224,5.02530515,167.67,167.61,9.10395045]
[1752483632725,3.13935045,167.63,167.52,3.13935045]
[1752483632930,3.13935045,167.61,167.53,3.13935045]
[1752483633325,3.13935045,167.61,167.56,5.9664]
[1752483633730,3.13935045,167.61,167.55,5.9668]
[1752483633932,3.13935045,167.61,167.53,3.13935045]
[1752483635430,26.0946556,167.61,167.51,3.13935045]
[1752483635631,3.13935045,167.59,167.51,3.13935045]
[1752483636034,22.95530515,167.61,167.54,5.9672]
[1752483636331,3.13935045,167.59,167.54,5.9672]
[1752483637333,3.13935045,167.59,167.5,3.13935045]
[1752483637536,3.13935045,167.59,167.52,3.13935045]
[1752483637934,3.13935045,167.59,167.55,5.9668]
[1752483638338,8.1646556,167.61,167.56,5.9662]
[1752483639136,8.1646556,167.61,167.57,5.9661]
[1752483639536,5.02530515,167.62,167.56,3.13935045]
[1752483639832,181.7046556,167.63,167.56,3.13935045]
[1752483640238,181.7046556,167.63,167.58,5.9656]
[1752483641841,178.56530515,167.63,167.56,3.13935045]
[1752483642441,178.56530515,167.63,167.58,5.9656]
[1752483643737,178.56530515,167.63,167.59,3.39]
[1752483644042,178.56530515,167.63,167.56,3.13935045]
[1752483644441,178.56530515,167.63,167.61,3.39]
[1752483645043,178.56530515,167.63,167.62,3.39]
[1752483646547,5.02530515,167.63,167.62,3.39]
[1752483647643,22.95530515,167.66,167.62,3.39]
[1752483648139,17.93,167.66,167.62,3.39]
[1752483648541,22.95530515,167.66,167.63,3.39]
[1752483648735,22.95530515,167.66,167.59,3.13935045]
[1752483648944,22.95530515,167.66,167.64,3.39]
[1752483649144,17.93,167.66,167.59,3.13935045]
[1752483649345,17.93,167.66,167.65,3.39]
[1752483649546,17.93,167.66,167.64,3.39]
[1752483650547,17.93,167.66,167.6,5.965]
[1752483650548,26.0946556,167.65,167.6,3.39]
[1752483650741,3.13935045,167.63,167.6,3.39]
[1752483651642,3.13935045,167.63,167.57,5.9661]
[1752483651840,21.06935045,167.61,167.58,3.39]
[1752483652043,21.06935045,167.59,167.56,3.39]
[1752483652254,3.13935045,167.57,167.56,3.39]
[1752483652650,22.95530515,167.59,167.56,3.39]
[1752483652949,3.13935045,167.57,167.56,3.39]
[1752483653854,3.13935045,167.57,167.5,3.39]
[1752483654048,3.13935045,167.53,167.49,5.9688]
[1752483654260,3.13935045,167.53,167.44,3.39]
[1752483654449,3.13935045,167.53,167.44,6.52935045]
[1752483654648,3.13935045,167.53,167.49,5.9688]
[1752483654847,3.13935045,167.53,167.5,3.39]
[1752483655248,3.13935045,167.54,167.5,3.39]
[1752483655849,22.94530515,167.57,167.52,3.39]
[1752483656049,3.13935045,167.56,167.52,3.39]
[1752483657950,3.13935045,167.56,167.53,3.39]
[1752483658150,3.13935045,167.56,167.49,3.39]
[1752483659244,3.13935045,167.56,167.52,3.39]
[1752483659644,3.13935045,167.56,167.48,3.13935045]
[1752483659845,3.13935045,167.56,167.53,3.39]
[1752483660352,191.44,167.57,167.49,3.39]
[1752483660652,3.13935045,167.54,167.51,5.9682]
[1752483660856,3.13935045,167.54,167.52,3.39]
[1752483661057,3.13935045,167.53,167.43,3.13935045]
[1752483661253,3.13935045,167.51,167.44,3.39]
[1752483661649,3.13935045,167.51,167.5,3.39]
[1752483662050,3.13935045,167.53,167.5,3.39]
[1752483662355,17.92,167.55,167.5,3.39]
[1752483662554,3.13935045,167.54,167.5,3.39]
[1752483663348,3.13935045,167.55,167.52,3.39]
[1752483664054,9.10635045,167.55,167.52,3.39]
[1752483664259,3.13935045,167.55,167.52,3.39]
[1752483665458,9.10645045,167.55,167.5,5.9686]
[1752483665654,3.13935045,167.55,167.51,3.39]
[1752483665849,3.13935045,167.53,167.49,5.9687]
[1752483666055,3.13935045,167.53,167.48,3.39]
[1752483666959,3.13935045,167.53,167.49,5.9689]
[1752483667155,3.13935045,167.53,167.5,3.39]
[1752483667358,3.13935045,167.53,167.51,3.39]
[1752483667860,9.10715045,167.53,167.49,3.39]
[1752483668055,3.13935045,167.53,167.46,3.39]
[1752483668257,3.13935045,167.53,167.49,5.9689]
[1752483668458,3.13935045,167.53,167.51,3.39]
[1752483669263,3.13935045,167.53,167.51,9.3583]
[1752483669562,27.02645045,167.55,167.52,3.39]
[1752483670562,3.13935045,167.55,167.52,3.39]
[1752483675164,3.13935045,167.55,167.39,4.95944444]
[1752483675365,3.13935045,167.55,167.46,6.70935045]
[1752483675554,3.13935045,167.53,167.45,3.57]
[1752483675753,3.13935045,167.53,167.49,9.539]
[1752483675959,3.13935045,167.53,167.5,3.57]
[1752483676459,5.9676,167.54,167.5,5.9687]
[1752483676658,3.13935045,167.54,167.51,3.57]
[1752483678963,3.13935045,167.52,167.47,3.57]
[1752483679259,3.13935045,167.52,167.44,3.13935045]
[1752483679260,9.10765045,167.52,167.44,3.13935045]
[1752483679470,9.10765045,167.52,167.48,3.57]
[1752483679864,9.10765045,167.52,167.48,5.9694]
[1752483680164,9.10765045,167.52,167.48,9.5394]
[1752483680366,3.13935045,167.52,167.46,3.57]
[1752483680765,3.13935045,167.52,167.48,5.9692]
[1752483680967,3.13935045,167.52,167.49,3.57]
[1752483682968,3.13935045,167.52,167.5,3.57]
[1752483683775,3.13935045,167.52,167.5,9.5386]
[1752483683969,3.13935045,167.52,167.51,3.57]
[1752483684171,27.02675045,167.54,167.45,3.13935045]
[1752483684371,3.13935045,167.52,167.45,3.13935045]
[1752483684567,3.13935045,167.48,167.4,3.13935045]
[1752483684770,191.44,167.51,167.42,3.13935045]
[1752483684974,194.57935045,167.51,167.48,3.57]
[1752483686174,200.54775045,167.51,167.48,3.57]
[1752483687574,3.13935045,167.49,167.47,3.57]
[1752483687770,2.28,167.48,167.4,3.13935045]
[1752483688073,5.41935045,167.47,167.4,3.13935045]
[1752483688274,2.28,167.46,167.38,3.13935045]
[1752483688470,2.28,167.46,167.35,520.53944444]
[1752483688667,2.28,167.44,167.41,5.9716]
[1752483688872,2.28,167.44,167.32,121.51529748]
[1752483688873,5.41935045,167.43,167.34,4.95944444]
[1752483689175,5.41935045,167.43,167.35,3.13935045]
[1752483689474,11.39055045,167.43,167.39,5.9724]
[1752483689677,5.41935045,167.43,167.35,3.13935045]
[1752483689975,5.41935045,167.43,167.36,3.57]
[1752483690176,3.13935045,167.43,167.36,3.57]
[1752483690377,2.28,167.48,167.38,3.57]
[1752483690578,173.54,167.46,167.38,3.57]
[1752483690877,2.28,167.44,167.43,3.57]
[1752483691077,2.28,167.45,167.43,3.57]
[1752483691573,173.54,167.46,167.4,3.57]
[1752483691574,2.28,167.44,167.4,3.57]
[1752483691976,2.28,167.44,167.42,5.9715]
[1752483692174,3.13935045,167.43,167.32,121.51529748]
[1752483692367,2.28,167.42,167.38,3.57]
[1752483692572,9.11065045,167.43,167.39,5.9724]
[1752483692880,2.28,167.42,167.4,3.57]
[1752483693078,11.39065045,167.43,167.4,3.57]
[1752483693374,2.28,167.42,167.41,3.57]
[1752483693574,5.41935045,167.44,167.41,3.57]
[1752483693774,2.28,167.43,167.41,3.57]
[1752483694674,2.28,167.43,167.42,3.57]
[1752483694866,173.54,167.44,167.42,3.57]
[1752483695176,191.46,167.45,167.44,3.57]
[1752483695576,193.74,167.45,167.44,3.57]
[1752483696073,20.2,167.45,167.44,3.57]
[1752483696274,173.54,167.45,167.44,3.57]
[1752483696579,175.82,167.45,167.44,3.57]
[1752483696778,23.33935045,167.47,167.44,3.57]
[1752483697079,173.54,167.46,167.44,3.57]
[1752483697278,2.28,167.46,167.44,3.57]
[1752483697480,176.67935045,167.47,167.44,3.57]
[1752483697780,2.28,167.46,167.44,3.57]
[1752483698073,2.28,167.46,167.43,9.5409]
[1752483698272,2.28,167.46,167.44,3.57]
[1752483698478,2.28,167.45,167.44,3.57]
[1752483698978,2.28,167.44,167.38,3.13935045]
[1752483699179,2.28,167.44,167.39,3.57]
[1752483699382,2.28,167.44,167.41,3.57]
[1752483699580,2.28,167.44,167.42,3.57]
[1752483699871,2.28,167.43,167.39,3.57]
[1752483700077,2.28,167.42,167.37,3.57]
[1752483700473,2.28,167.42,167.39,5.9724]
[1752483700875,2.28,167.42,167.34,3.13935045]
[1752483701075,2.28,167.4,167.33,3.13935045]
[1752483701272,3.13935045,167.39,167.33,3.57]
[1752483701581,3.13935045,167.39,167.36,3.57]
[1752483701887,5.41935045,167.39,167.36,3.57]
[1752483702177,11.39195045,167.39,167.33,3.57]
[1752483702380,2.28,167.38,167.33,3.57]
[1752483702676,2.28,167.38,167.36,3.47]
[1752483702870,191.46,167.42,167.36,3.47]
[1752483703075,3.13935045,167.41,167.36,9.4434]
[1752483703275,3.13935045,167.41,167.37,3.47]
[1752483703675,5.9725,167.4,167.37,3.47]
[1752483703878,8.2625,167.4,167.37,3.47]
[1752483704081,2.29,167.4,167.37,3.47]
[1752483704277,2.29,167.39,167.36,3.47]
[1752483704479,2.29,167.4,167.36,9.4435]
[1752483704780,2.29,167.39,167.37,3.47]
[1752483704974,2.29,167.37,167.33,5.9745]
[1752483705181,2.29,167.37,167.34,3.47]
[1752483705584,3.13935045,167.36,167.32,3.47]
[1752483705880,5.42935045,167.36,167.32,3.47]
[1752483706182,2.29,167.4,167.29,3.47]
[1752483706385,3.13935045,167.37,167.29,3.47]
[1752483706584,3.13935045,167.37,167.34,5.9743]
[1752483706778,3.13935045,167.37,167.35,3.47]
[1752483706979,3.13935045,167.4,167.35,3.47]
[1752483707176,8.2626,167.39,167.36,3.47]
[1752483707381,2.29,167.39,167.36,3.47]
[1752483707978,2.29,167.39,167.36,9.4436]
[1752483708188,2.29,167.39,167.37,3.47]
[1752483708685,8.2626,167.39,167.37,3.47]
[1752483708884,2.29,167.39,167.37,3.47]
[1752483709679,3.13935045,167.4,167.37,3.47]
[1752483710387,2.29,167.39,167.37,3.47]
[1752483710593,2.29,167.38,167.37,3.47]
[1752483710784,5.42935045,167.4,167.37,3.47]
[1752483710986,2.29,167.39,167.33,3.47]
[1752483711183,5.9726,167.39,167.35,5.9738]
[1752483711486,2.29,167.38,167.33,3.47]
[1752483711786,2.29,167.38,167.34,5.9742]
[1752483711986,2.29,167.37,167.35,3.47]
[1752483712291,5.9731,167.38,167.27,515.84]
[1752483712292,2.29,167.36,167.33,5.9745]
[1752483712586,2.29,167.36,167.35,3.47]
[1752483712989,3.13935045,167.38,167.35,3.47]
[1752483713376,5.42935045,167.38,167.35,9.444]
[1752483713576,2.29,167.37,167.33,3.47]
[1752483713783,3.13935045,167.38,167.33,3.47]
[1752483713980,2.29,167.38,167.35,5.974]
[1752483714290,2.29,167.38,167.36,3.47]
[1752483714489,5.9733,167.37,167.34,5.9743]
[1752483714696,8.2633,167.37,167.34,5.9743]
[1752483714990,2.29,167.37,167.35,3.47]
[1752483715390,2.29,167.37,167.36,3.47]
[1752483715798,5.42935045,167.38,167.36,3.47]
[1752483715993,2.29,167.37,167.3,3.13935045]
[1752483716390,2.29,167.37,167.3,6.60935045]
[1752483716592,2.29,167.37,167.31,3.47]
[1752483717098,8.2635,167.37,167.33,5.9746]
[1752483717301,2.29,167.36,167.34,3.47]
[1752483717799,8.2635,167.37,167.34,3.47]
[1752483718200,2.29,167.37,167.34,5.9743]
[1752483718395,173.58,167.39,167.35,3.47]
[1752483718595,175.87,167.39,167.35,3.47]
[1752483718794,8.2632,167.38,167.35,3.47]
[1752483719094,5.42935045,167.38,167.35,3.47]
[1752483719398,176.71935045,167.38,167.35,3.47]
[1752483719692,2.29,167.36,167.35,3.47]
[1752483719898,2.29,167.35,167.34,3.47]
[1752483720099,5.9748,167.33,167.25,6.60935045]
[1752483720297,11.40415045,167.33,167.26,3.47]
[1752483720696,8.2654,167.32,167.29,3.47]
[1752483720895,2.29,167.3,167.22,3.47]
[1752483721097,3.13935045,167.27,167.22,3.47]
[1752483721301,2.29,167.25,167.24,9.4479]
[1752483721693,3.13935045,167.27,167.24,5.9779]
[1752483721899,11.40635045,167.27,167.25,3.47]
[1752483722200,11.40635045,167.27,167.26,3.47]
[1752483722597,3.13935045,167.29,167.26,3.47]
[1752483722792,176.73935045,167.33,167.26,3.47]
[1752483723002,176.73935045,167.33,167.28,5.9765]
[1752483723193,176.73935045,167.33,167.29,3.47]
[1752483723395,2.29,167.3,167.21,3.13935045]
[1752483723600,3.13935045,167.29,167.22,3.47]
[1752483723903,5.42935045,167.29,167.22,3.47]
[1752483724199,2.29,167.25,167.22,9.4484]
[1752483724397,2.29,167.25,167.23,3.47]
[1752483724398,2.29,167.24,167.23,3.47]
[1752483724595,3.13935045,167.25,167.23,3.47]
[1752483725093,5.42935045,167.25,167.18,3.13935045]
[1752483725302,11.40695045,167.25,167.24,3.47]
[1752483725901,9.11695045,167.25,167.21,3.47]
[1752483726205,2.29,167.24,167.17,3.47]
[1752483726401,2.29,167.24,167.21,5.9788]
[1752483726603,2.29,167.24,167.22,3.47]
[1752483726903,2.29,167.23,167.22,3.47]
[1752483727107,2.29,167.22,167.14,3.13935045]
[1752483727297,2.29,167.22,167.17,3.47]
[1752483727500,5.42935045,167.24,167.17,3.47]
[1752483727901,9.11755045,167.24,167.2,5.9791]
[1752483728105,2.29,167.22,167.21,3.47]
[1752483728606,5.9785,167.23,167.21,3.47]
[1752483728803,3.13935045,167.22,167.2,3.47]
[1752483729009,2.29,167.21,167.2,3.47]
[1752483729604,2.29,167.21,167.15,3.47]
[1752483729803,3.13935045,167.22,167.19,5.9794]
[1752483730007,3.13935045,167.22,167.2,3.47]
[1752483730210,5.42935045,167.24,167.2,3.47]
[1752483730511,5.9786,167.23,167.19,5.9796]
[1752483730709,2.29,167.25,167.17,3.47]
[1752483730904,3.13935045,167.24,167.19,3.47]
[1752483731113,2.29,167.23,167.19,3.47]
[1752483731313,2.29,167.22,167.19,3.47]
[1752483731506,3.13935045,167.24,167.17,3.47]
[1752483731707,3.13935045,167.22,167.17,3.47]
[1752483731911,2.29,167.2,167.17,3.47]
[1752483732110,3.13935045,167.22,167.11,516.32]
[1752483732311,2.29,167.21,167.2,3.47]
[1752483732909,2.29,167.21,167.13,3.13935045]
[1752483733113,2.29,167.21,167.14,3.65]
[1752483733503,5.9792,167.21,167.14,3.65]
[1752483733708,2.3,167.2,167.14,3.65]
[1752483733913,5.43935045,167.22,167.18,5.9798]
[1752483734104,5.43935045,167.22,167.19,3.65]
[1752483734304,2.3,167.21,167.2,3.65]
[1752483735111,2.3,167.21,167.05,119.15994209]
[1752483735413,3.13935045,167.22,167.18,5.9798]
[1752483735618,5.43935045,167.22,167.19,3.65]
[1752483735816,3.13935045,167.22,167.14,3.13935045]
[1752483736017,5.9793,167.21,167.17,5.9802]
[1752483736218,173.7,167.24,167.05,119.15994209]
[1752483736219,2.3,167.19,167.05,119.15994209]
[1752483736513,2.3,167.17,167.15,5.9811]
[1752483736919,3.13935045,167.18,167.16,3.65]
[1752483737317,3.13935045,167.22,167.17,3.65]
[1752483737817,2.3,167.21,167.19,3.65]
[1752483738316,8.279,167.21,167.2,3.65]
[1752483738716,2.3,167.21,167.2,3.65]
[1752483738921,3.13935045,167.24,167.2,3.65]
[1752483739119,5.43935045,167.24,167.2,3.65]
[1752483739315,3.13935045,167.24,167.2,3.65]
[1752483739624,8.2786,167.23,167.2,3.65]
[1752483739923,2.3,167.23,167.22,3.65]
[1752483740121,2.3,167.27,167.2,3.13935045]
[1752483740414,2.3,167.29,167.22,3.13935045]
[1752483740620,2.3,167.27,167.24,3.65]
[1752483741419,2.3,167.26,167.25,3.65]
[1752483741816,2.3,167.28,167.25,3.65]
[1752483742015,191.64,167.31,167.25,3.65]